fUST/lending_fUST_20250311
["ID","MTS","AMOUNT","RATE_DAILY","PERIOD"]
[355846016,1741634731725,-619.87545063,0.0005178,120]
[355846018,1741634731786,-535.32893725,0.0005178,120]
[355846020,1741634731847,-500.0,0.0005178,120]
[355846023,1741634731910,-500.0,0.0005178,120]
[355846025,1741634731972,-500.0,0.0005178,120]
[355846027,1741634732037,-637.17,0.0005178,120]
[355846029,1741634732104,-500.0,0.0005178,120]
[355846031,1741634732168,-500.0,0.0005178,120]
[355846033,1741634732234,-966.69,0.0005178,120]
[355846035,1741634732297,-500.0,0.0005178,120]
[355846037,1741634732357,-513.88065625,0.0005178,120]
[355846039,1741634732420,-500.0,0.0005178,120]
[355846041,1741634732486,-500.0,0.0005178,120]
[355846043,1741634732550,-500.0,0.0005178,120]
[355846045,1741634732615,-166.36444751,0.0005178,120]
[355846047,1741634732680,-500.0,0.0005178,120]
[355846049,1741634732743,-538.43634124,0.0005178,120]
[355846051,1741634732805,-500.0,0.0005178,120]
[355846053,1741634732868,-500.0,0.0005178,120]
[355846055,1741634732930,-930.98,0.0005178,120]
[355846057,1741634732990,-335.69017645,0.0005178,120]
[355846059,1741634733056,-500.0,0.0005178,120]
[355846061,1741634733122,-500.0,0.0005178,120]
[355846063,1741634733188,-500.0,0.0005178,120]
[355846065,1741634733255,-500.0,0.0005178,120]
[355846067,1741634733318,-500.0,0.0005178,120]
[355846069,1741634733382,-941.74,0.0005178,120]
[355846071,1741634733452,-500.0,0.0005178,120]
[355846073,1741634733519,-628.95,0.0005178,120]
[355846075,1741634733587,-500.0,0.0005178,120]
[355846077,1741634733655,-500.0,0.0005178,120]
[355846079,1741634733721,-500.0,0.0005178,120]
[355846081,1741634733787,-707.99,0.0005178,120]
[355846083,1741634733853,-590.09,0.0005178,120]
[355846085,1741634733916,-500.0,0.0005178,120]
[355846087,1741634733979,-500.0,0.0005178,120]
[355846089,1741634734048,-666.63,0.0005178,120]
[355846091,1741634734117,-500.0,0.0005178,120]
[355846093,1741634734186,-530.12494236,0.0005178,120]
[355846095,1741634734253,-500.0,0.0005178,120]
[355846097,1741634734317,-500.0,0.0005178,120]
[355846099,1741634734383,-990.23,0.0005178,120]
[355846101,1741634734452,-1039.72,0.0005178,120]
[355846103,1741634734518,-500.0,0.0005178,120]
[355846105,1741634734582,-821.71,0.0005178,120]
[355846107,1741634734646,-500.0,0.0005178,120]
[355846109,1741634734714,-671.85,0.0005178,120]
[355846111,1741634734781,-456.21715287,0.0005178,120]
[355846113,1741634734845,-662.81,0.0005178,120]
[355846115,1741634734911,-500.0,0.0005178,120]
[355846117,1741634734973,-1093.3,0.0005178,120]
[355846119,1741634735039,-500.0,0.0005178,120]
[355846121,1741634735105,-500.0,0.0005178,120]
[355846123,1741634735171,-500.0,0.0005178,120]
[355846125,1741634735232,-500.0,0.0005178,120]
[355846127,1741634735292,-500.0,0.0005178,120]
[355846128,1741634735353,-520.62,0.0005178,120]
[355846131,1741634735414,-723.93,0.0005178,120]
[355846133,1741634735475,-500.0,0.0005178,120]
[355846135,1741634735540,-500.0,0.0005178,120]
[355846137,1741634735605,-500.0,0.0005178,120]
[355846139,1741634735669,-500.0,0.0005178,120]
[355846141,1741634735734,-500.0,0.0005178,120]
[355846143,1741634735796,-500.0,0.0005178,120]
[355846145,1741634735858,-500.0,0.0005178,120]
[355846147,1741634735921,-545.41,0.0005178,120]
[355846149,1741634735986,-500.0,0.0005178,120]
[355846150,1741634736052,-500.0,0.0005178,120]
[355846153,1741634736120,-500.0,0.0005178,120]
[355846155,1741634736186,-567.29,0.0005178,120]
[355846156,1741634736252,-1069.2,0.0005178,120]
[355846159,1741634736318,-500.0,0.0005178,120]
[355846161,1741634736380,-569.12,0.0005178,120]
[355846163,1741634736443,-500.0,0.0005178,120]
[355846164,1741634736512,-500.0,0.0005178,120]
[355846167,1741634736577,-500.0,0.0005178,120]
[355846169,1741634736640,-500.0,0.0005178,120]
[355846171,1741634736706,-525.57,0.0005178,120]
[355846173,1741634736768,-500.0,0.0005178,120]
[355846174,1741634736831,-500.0,0.0005178,120]
[355846177,1741634736895,-500.0,0.0005178,120]
[355846179,1741634736958,-500.0,0.0005178,120]
[355846181,1741634737025,-500.0,0.0005178,120]
[355846183,1741634737087,-500.0,0.0005178,120]
[355846185,1741634737152,-567.26,0.0005178,120]
[355846190,1741634737412,-1000.0,0.0005178,120]
[355846192,1741634737471,-500.0,0.0005178,120]
[355846194,1741634737528,-558.40207929,0.0005178,120]
[355846196,1741634737583,-500.0,0.0005178,120]
[355846199,1741634737642,-500.0,0.0005178,120]
[355846201,1741634737704,-500.0,0.0005178,120]
[355846203,1741634737766,-2049.14,0.0005178,120]
[355846205,1741634737829,-500.0,0.0005178,120]
[355846207,1741634737892,-538.42166346,0.0005178,120]
[355846209,1741634737952,-500.0,0.0005178,120]
[355846211,1741634738014,-500.0,0.0005178,120]
[355846213,1741634738075,-500.0,0.0005178,120]
[355846215,1741634738139,-500.0,0.0005178,120]
[355846217,1741634738203,-500.0,0.0005178,120]
[355846218,1741634738260,-634.97,0.0005178,120]
[355846219,1741634738311,-500.0,0.0005178,120]
[355846220,1741634738364,-884.18,0.0005178,120]
[355846221,1741634738419,-1733.86,0.0005178,120]
[355846223,1741634738476,-500.0,0.0005178,120]
[355846225,1741634738542,-516.42576219,0.0005178,120]
[355846227,1741634738606,-519.64839478,0.0005178,120]
[355846229,1741634738666,-1852.39,0.0005178,120]
[355846231,1741634738728,-448.17933934,0.0005178,120]
[355846233,1741634738789,-536.38,0.0005178,120]
[355846235,1741634738852,-540.09584521,0.0005178,120]
[355846236,1741634738914,-500.0,0.0005178,120]
[355846239,1741634738975,-2167.04,0.0005178,120]
[355846241,1741634739039,-500.0,0.0005178,120]
[355846243,1741634739106,-500.0,0.0005178,120]
[355846245,1741634739169,-537.7360965,0.0005178,120]
[355846247,1741634739236,-1453.83,0.0005178,120]
[355846249,1741634739300,-500.0,0.0005178,120]
[355846251,1741634739362,-500.0,0.0005178,120]
[355846253,1741634739423,-500.0,0.0005178,120]
[355846255,1741634739487,-500.0,0.0005178,120]
[355846257,1741634739551,-500.0,0.0005178,120]
[355846259,1741634739615,-485.51530386,0.0005178,120]
[355846261,1741634739678,-825.46,0.0005178,120]
[355846263,1741634739739,-549.32420168,0.0005178,120]
[355846265,1741634739800,-500.0,0.0005178,120]
[355846267,1741634739863,-500.0,0.0005178,120]
[355846269,1741634739931,-500.0,0.0005178,120]
[355846271,1741634739992,-1427.28,0.0005178,120]
[355846273,1741634740059,-500.0,0.0005178,120]
[355846275,1741634740123,-500.0,0.0005178,120]
[355846277,1741634740190,-1000.0,0.0005178,120]
[355846279,1741634740256,-500.0,0.0005178,120]
[355846281,1741634740317,-539.71643396,0.0005178,120]
[355846283,1741634740377,-500.0,0.0005178,120]
[355846285,1741634740438,-341.61054805,0.0005178,120]
[355846287,1741634740501,-533.11425158,0.0005178,120]
[355846289,1741634740563,-500.0,0.0005178,120]
[355846291,1741634740623,-500.0,0.0005178,120]
[355846293,1741634740684,-593.95,0.0005178,120]
[355846295,1741634740746,-532.17482519,0.0005178,120]
[355846297,1741634740807,-1223.04,0.0005178,120]
[355846298,1741634740869,-556.49597596,0.0005178,120]
[355846301,1741634740932,-500.0,0.0005178,120]
[355846303,1741634740995,-644.66104101,0.0005178,120]
[355846305,1741634741064,-635.93574275,0.0005178,120]
[355846307,1741634741130,-500.0,0.0005178,120]
[355846309,1741634741194,-500.0,0.0005178,120]
[355846311,1741634741261,-1977.19,0.0005178,120]
[355846313,1741634741331,-1508.22,0.0005178,120]
[355846315,1741634741392,-551.71835503,0.0005178,120]
[355846317,1741634741454,-537.39112989,0.0005178,120]
[355846319,1741634741514,-542.66934242,0.0005178,120]
[355846321,1741634741575,-1095.78,0.0005178,120]
[355846323,1741634741637,-500.0,0.0005178,120]
[355846325,1741634741698,-1280.77,0.0005178,120]
[355846326,1741634741763,-500.0,0.0005178,120]
[355846329,1741634741825,-534.60795583,0.0005178,120]
[355846331,1741634741888,-648.8,0.0005178,120]
[355846333,1741634741957,-500.0,0.0005178,120]
[355846335,1741634742026,-500.0,0.0005178,120]
[355846337,1741634742090,-500.0,0.0005178,120]
[355846338,1741634742153,-500.0,0.0005178,120]
[355846341,1741634742216,-500.0,0.0005178,120]
[355846342,1741634742275,-500.0,0.0005178,120]
[355846344,1741634742336,-1723.62,0.0005178,120]
[355846346,1741634742398,-500.0,0.0005178,120]
[355846349,1741634742464,-500.0,0.0005178,120]
[355846351,1741634742528,-500.0,0.0005178,120]
[355846353,1741634742592,-625.71,0.0005178,120]
[355846355,1741634742652,-500.0,0.0005178,120]
[355846357,1741634742713,-500.0,0.0005178,120]
[355846359,1741634742773,-500.0,0.0005178,120]
[355846361,1741634742834,-500.0,0.0005178,120]
[355846362,1741634742893,-500.0,0.0005178,120]
[355846365,1741634742959,-3946.5,0.0005178,120]
[355846367,1741634743024,-500.0,0.0005178,120]
[355846369,1741634743087,-500.0,0.0005178,120]
[355846371,1741634743150,-500.0,0.0005178,120]
[355846373,1741634743214,-527.27780931,0.0005178,120]
[355846375,1741634743275,-500.0,0.0005178,120]
[355846377,1741634743337,-1395.15,0.0005178,120]
[355846379,1741634743398,-500.0,0.0005178,120]
[355846381,1741634743461,-500.0,0.0005178,120]
[355846382,1741634743521,-500.0,0.0005178,120]
[355846384,1741634743584,-500.0,0.0005178,120]
[355846387,1741634743646,-500.0,0.0005178,120]
[355846389,1741634743709,-500.0,0.0005178,120]
[355846391,1741634743772,-500.0,0.0005178,120]
[355846393,1741634743835,-500.0,0.0005178,120]
[355846398,1741634744089,-501.86,0.0005178,120]
[355846400,1741634744147,-500.0,0.0005178,120]
[355846402,1741634744201,-618.91,0.0005178,120]
[355846404,1741634744260,-696.15,0.0005178,120]
[355846406,1741634744313,-527.80990459,0.0005178,120]
[355846408,1741634744373,-500.0,0.0005178,120]
[355846410,1741634744435,-500.0,0.0005178,120]
[355846412,1741634744498,-797.66,0.0005178,120]
[355846414,1741634744563,-2087.8,0.0005178,120]
[355846415,1741634744625,-500.0,0.0005178,120]
[355846418,1741634744687,-508.0,0.0005178,120]
[355846420,1741634744746,-500.0,0.0005178,120]
[355846422,1741634744805,-500.0,0.0005178,120]
[355846424,1741634744873,-916.87,0.0005178,120]
[355846426,1741634744938,-5780.6,0.0005178,120]
[355846427,1741634745007,-524.95981205,0.0005178,120]
[355846428,1741634745069,-500.0,0.0005178,120]
[355846429,1741634745132,-907.16,0.0005178,120]
[355846430,1741634745191,-539.16583294,0.0005178,120]
[355846432,1741634745255,-171.85397278,0.0005178,120]
[355846434,1741634745314,-556.98212213,0.0005178,120]
[355846436,1741634745382,-500.0,0.0005178,120]
[355846438,1741634745447,-964.32,0.0005178,120]
[355846440,1741634745519,-500.0,0.0005178,120]
[355846442,1741634745584,-500.0,0.0005178,120]
[355846444,1741634745649,-500.0,0.0005178,120]
[355846446,1741634745714,-2093.35,0.0005178,120]
[355846447,1741634745777,-500.0,0.0005178,120]
[355846450,1741634745845,-500.0,0.0005178,120]
[355846452,1741634745911,-500.0,0.0005178,120]
[355846454,1741634745976,-208.56272275,0.0005178,120]
[355846456,1741634746043,-500.0,0.0005178,120]
[355846458,1741634746110,-943.37,0.0005178,120]
[355846460,1741634746174,-375.47665807,0.0005178,120]
[355846462,1741634746239,-535.62098667,0.0005178,120]
[355846464,1741634746303,-2796.61,0.0005178,120]
[355846466,1741634746368,-500.0,0.0005178,120]
[355846467,1741634746434,-829.49,0.0005178,120]
[355846470,1741634746498,-1140.9,0.0005178,120]
[355846472,1741634746561,-500.0,0.0005178,120]
[355846474,1741634746626,-500.0,0.0005178,120]
[355846476,1741634746694,-500.0,0.0005178,120]
[355846478,1741634746765,-500.0,0.0005178,120]
[355846480,1741634746831,-500.0,0.0005178,120]
[355846482,1741634746895,-500.0,0.0005178,120]
[355846484,1741634746966,-500.0,0.0005178,120]
[355846485,1741634747030,-500.0,0.0005178,120]
[355846488,1741634747099,-500.0,0.0005178,120]
[355846490,1741634747166,-500.0,0.0005178,120]
[355846491,1741634747230,-1287.13,0.0005178,120]
[355846494,1741634747296,-580.77,0.0005178,120]
[355846496,1741634747362,-500.0,0.0005178,120]
[355846498,1741634747438,-598.27,0.0005178,120]
[355846500,1741634747507,-517.21,0.0005178,120]
[355846502,1741634747572,-500.0,0.0005178,120]
[355846504,1741634747633,-500.0,0.0005178,120]
[355846505,1741634747695,-500.0,0.0005178,120]
[355846507,1741634747756,-500.0,0.0005178,120]
[355846510,1741634747822,-1667.02,0.0005178,120]
[355846511,1741634747885,-1230.06,0.0005178,120]
[355846514,1741634747947,-500.0,0.0005178,120]
[355846515,1741634748015,-685.63,0.0005178,120]
[355846518,1741634748081,-529.86,0.0005178,120]
[355846520,1741634748147,-1714.18,0.0005178,120]
[355846521,1741634748213,-2510.41,0.0005178,120]
[355846524,1741634748279,-500.0,0.0005178,120]
[355846526,1741634748339,-500.0,0.0005178,120]
[355846528,1741634748405,-520.23,0.0005178,120]
[355846530,1741634748469,-500.0,0.0005178,120]
[355846532,1741634748536,-3040.06,0.0005178,120]
[355846534,1741634748599,-562.28,0.0005178,120]
[355846536,1741634748667,-543.8212161,0.0005178,120]
[355846538,1741634748729,-828.78,0.0005178,120]
[355846540,1741634748792,-3111.15,0.0005178,120]
[355846542,1741634748858,-500.0,0.0005178,120]
[355846544,1741634748923,-1558.42,0.0005178,120]
[355846546,1741634748986,-500.0,0.0005178,120]
[355846548,1741634749051,-500.0,0.0005178,120]
[355846550,1741634749115,-2044.08,0.0005178,120]
[355846552,1741634749181,-1349.72,0.0005178,120]
[355846554,1741634749246,-500.0,0.0005178,120]
[355846556,1741634749310,-500.0,0.0005178,120]
[355846558,1741634749374,-505.0,0.0005178,120]
[355846559,1741634749438,-500.0,0.0005178,120]
[355846562,1741634749500,-500.0,0.0005178,120]
[355846563,1741634749563,-500.0,0.0005178,120]
[355846566,1741634749625,-1531.21,0.0005178,120]
[355846568,1741634749687,-500.0,0.0005178,120]
[355846570,1741634749749,-948.59,0.0005178,120]
[355846572,1741634749811,-634.94,0.0005178,120]
[355846573,1741634749878,-500.0,0.0005178,120]
[355846575,1741634749934,-1529.78,0.0005178,120]
[355846577,1741634749990,-500.0,0.0005178,120]
[355846579,1741634750049,-500.0,0.0005178,120]
[355846582,1741634750108,-610.48,0.0005178,120]
[355846584,1741634750170,-500.0,0.0005178,120]
[355846586,1741634750234,-4845.92,0.0005178,120]
[355846588,1741634750296,-500.0,0.0005178,120]
[355846590,1741634750359,-637.0,0.0005178,120]
[355846592,1741634750426,-500.0,0.0005178,120]
[355846594,1741634750490,-996.35,0.0005178,120]
[355846596,1741634750552,-2013.49,0.0005178,120]
[355846598,1741634750614,-500.0,0.0005178,120]
[355846599,1741634750674,-932.97,0.0005178,120]
[355846605,1741634750913,-4678.54,0.0005178,120]
[355846607,1741634750964,-500.0,0.0005178,120]
[355846609,1741634751018,-5617.34,0.0005178,120]
[355846611,1741634751069,-500.0,0.0005178,120]
[355846612,1741634751127,-500.0,0.0005178,120]
[355846615,1741634751187,-3648.52,0.0005178,120]
[355846617,1741634751251,-500.0,0.0005178,120]
[355846619,1741634751313,-760.85,0.0005178,120]
[355846621,1741634751375,-1071.61,0.0005178,120]
[355846623,1741634751439,-500.0,0.0005178,120]
[355846625,1741634751503,-500.0,0.0005178,120]
[355846627,1741634751564,-500.0,0.0005178,120]
[355846629,1741634751626,-500.0,0.0005178,120]
[355846631,1741634751688,-500.0,0.0005178,120]
[355846632,1741634751750,-500.0,0.0005178,120]
[355846634,1741634751812,-500.0,0.0005178,120]
[355846637,1741634751876,-1343.82,0.0005178,120]
[355846638,1741634751930,-518.48338689,0.0005178,120]
[355846639,1741634751995,-1206.47,0.0005178,120]
[355846640,1741634752059,-898.89,0.0005178,120]
[355846641,1741634752121,-500.0,0.0005178,120]
[355846642,1741634752186,-500.0,0.0005178,120]
[355846643,1741634752252,-397.57330754,0.0005178,120]
[355846644,1741634752316,-3411.55,0.0005178,120]
[355846645,1741634752380,-12509.02,0.0005178,120]
[355846647,1741634752441,-705.81,0.0005178,120]
[355846649,1741634752502,-710.74,0.0005178,120]
[355846652,1741634752562,-500.0,0.0005178,120]
[355846654,1741634752622,-500.0,0.0005178,120]
[355846655,1741634752686,-500.0,0.0005178,120]
[355846658,1741634752753,-585.94090515,0.0005178,120]
[355846660,1741634752817,-225.13559468,0.0005178,120]
[355846662,1741634752882,-2771.86,0.0005178,120]
[355846664,1741634752949,-500.0,0.0005178,120]
[355846666,1741634753018,-500.0,0.0005178,120]
[355846668,1741634753082,-5657.78,0.0005178,120]
[355846670,1741634753152,-500.0,0.0005178,120]
[355846671,1741634753219,-796.29,0.0005178,120]
[355846674,1741634753282,-500.0,0.0005178,120]
[355846676,1741634753346,-5551.46,0.0005178,120]
[355846678,1741634753409,-500.0,0.0005178,120]
[355846679,1741634753474,-2183.17,0.0005178,120]
[355846682,1741634753538,-1240.41,0.0005178,120]
[355846684,1741634753601,-1508.14,0.0005178,120]
[355846686,1741634753666,-500.0,0.0005178,120]
[355846687,1741634753729,-505.42,0.0005178,120]
[355846690,1741634753804,-500.0,0.0005178,120]
[355846692,1741634753871,-500.0,0.0005178,120]
[355846694,1741634753932,-500.0,0.0005178,120]
[355846695,1741634753995,-8620.18,0.0005178,120]
[355846698,1741634754063,-500.0,0.0005178,120]
[355846699,1741634754130,-500.0,0.0005178,120]
[355846702,1741634754197,-500.0,0.0005178,120]
[355846704,1741634754260,-537.90822799,0.0005178,120]
[355846706,1741634754325,-500.0,0.0005178,120]
[355846708,1741634754390,-500.0,0.0005178,120]
[355846710,1741634754455,-500.0,0.0005178,120]
[355846712,1741634754523,-1144.04,0.0005178,120]
[355846714,1741634754588,-500.0,0.0005178,120]
[355846716,1741634754649,-500.0,0.0005178,120]
[355846718,1741634754706,-500.0,0.0005178,120]
[355846720,1741634754774,-500.0,0.0005178,120]
[355846722,1741634754838,-500.0,0.0005178,120]
[355846724,1741634754899,-533.28,0.0005178,120]
[355846726,1741634754962,-500.0,0.0005178,120]
[355846728,1741634755027,-1231.57,0.0005178,120]
[355846730,1741634755088,-500.0,0.0005178,120]
[355846732,1741634755152,-500.0,0.0005178,120]
[355846734,1741634755217,-500.0,0.0005178,120]
[355846736,1741634755279,-510.330095,0.0005178,120]
[355846738,1741634755340,-500.0,0.0005178,120]
[355846740,1741634755400,-500.0,0.0005178,120]
[355846742,1741634755463,-562.15,0.0005178,120]
[355846744,1741634755533,-500.0,0.0005178,120]
[355846745,1741634755599,-500.0,0.0005178,120]
[355846748,1741634755665,-500.0,0.0005178,120]
[355846750,1741634755730,-3093.79,0.0005178,120]
[355846752,1741634755793,-500.0,0.0005178,120]
[355846754,1741634755854,-865.06,0.0005178,120]
[355846756,1741634755916,-1650.67,0.0005178,120]
[355846758,1741634755978,-500.0,0.0005178,120]
[355846760,1741634756038,-655.45842754,0.00051785,95]
[355846762,1741634756103,-10511.57785864,0.00051797,30]
[355846763,1741634756176,-315.01,0.000518,30]
[355846766,1741634756239,-655.45842754,0.00051885,96]
[355846768,1741634756300,-655.45842754,0.00051985,93]
[355846769,1741634756363,-10000.0,0.00052,54]
[355846772,1741634756428,-5004.6,0.00052,30]
[355846774,1741634756491,-5628.0,0.00052,120]
[355846776,1741634756555,-558.12216406,0.00052,120]
[355846778,1741634756619,-1000.0,0.00052,120]
[355846779,1741634756683,-500.0,0.00052054,120]
[355846782,1741634756748,-500.0,0.00052054,120]
[355846784,1741634756815,-500.0,0.00052054,120]
[355846786,1741634756880,-500.0,0.00052054,120]
[355846788,1741634756943,-501.8361569,0.00052054,120]
[355846790,1741634757006,-505.36314587,0.00052054,120]
[355846792,1741634757073,-500.0,0.00052054,120]
[355846794,1741634757142,-500.0,0.00052054,120]
[355846796,1741634757207,-500.0,0.00052054,120]
[355846798,1741634757272,-500.0,0.00052054,120]
[355846800,1741634757335,-500.0,0.00052054,120]
[355846801,1741634757399,-722.09,0.00052054,120]
[355846804,1741634757463,-500.0,0.00052054,120]
[355846809,1741634757741,-500.0,0.00052054,120]
[355846812,1741634757798,-317.31939611,0.00052054,120]
[355846814,1741634757859,-500.0,0.00052054,120]
[355846816,1741634757919,-500.0,0.00052054,120]
[355846818,1741634757981,-468.2479472,0.00052054,120]
[355846820,1741634758043,-637.17,0.00052054,120]
[355846822,1741634758106,-513.48294417,0.00052054,120]
[355846824,1741634758170,-500.12578079,0.00052054,120]
[355846826,1741634758235,-966.69,0.00052054,120]
[355846828,1741634758297,-500.0,0.00052054,120]
[355846830,1741634758361,-392.9451356,0.00052054,120]
[355846831,1741634758424,-500.0,0.00052054,120]
[355846834,1741634758488,-500.0,0.00052054,120]
[355846835,1741634758550,-500.0,0.00052054,120]
[355846838,1741634758613,-500.0,0.00052054,120]
[355846840,1741634758674,-500.0,0.00052054,120]
[355846842,1741634758737,-930.98,0.00052054,120]
[355846843,1741634758800,-532.72693015,0.00052054,120]
[355846846,1741634758863,-500.0,0.00052054,120]
[355846848,1741634758928,-500.0,0.00052054,120]
[355846849,1741634758985,-470.0,0.00052054,120]
[355846850,1741634759042,-500.0,0.00052054,120]
[355846851,1741634759097,-941.74,0.00052054,120]
[355846852,1741634759155,-500.0,0.00052054,120]
[355846854,1741634759210,-628.95,0.00052054,120]
[355846856,1741634759267,-500.0,0.00052054,120]
[355846858,1741634759320,-500.0,0.00052054,120]
[355846860,1741634759371,-500.0,0.00052054,120]
[355846862,1741634759430,-707.99,0.00052054,120]
[355846864,1741634759485,-590.09,0.00052054,120]
[355846866,1741634759537,-500.0,0.00052054,120]
[355846868,1741634759588,-500.0,0.00052054,120]
[355846870,1741634759639,-666.63,0.00052054,120]
[355846872,1741634759691,-515.91522449,0.00052054,120]
[355846874,1741634759740,-609.01131414,0.00052054,120]
[355846876,1741634759796,-500.0,0.00052054,120]
[355846878,1741634759853,-990.23,0.00052054,120]
[355846880,1741634759912,-1039.72,0.00052054,120]
[355846882,1741634759977,-500.0,0.00052054,120]
[355846885,1741634760037,-821.71,0.00052054,120]
[355846887,1741634760108,-500.0,0.00052054,120]
[355846889,1741634760177,-671.85,0.00052054,120]
[355846891,1741634760245,-662.81,0.00052054,120]
[355846893,1741634760313,-500.0,0.00052054,120]
[355846894,1741634760382,-1093.3,0.00052054,120]
[355846897,1741634760452,-645.21207389,0.00052054,120]
[355846899,1741634760520,-500.0,0.00052054,120]
[355846901,1741634760587,-500.0,0.00052054,120]
[355846903,1741634760652,-500.0,0.00052054,120]
[355846905,1741634760721,-552.9911815,0.00052054,120]
[355846907,1741634760789,-520.62,0.00052054,120]
[355846909,1741634760853,-723.93,0.00052054,120]
[355846911,1741634760919,-500.0,0.00052054,120]
[355846913,1741634760990,-500.0,0.00052054,120]
[355846915,1741634761061,-500.0,0.00052054,120]
[355846917,1741634761127,-500.0,0.00052054,120]
[355846919,1741634761197,-500.0,0.00052054,120]
[355846921,1741634761265,-500.0,0.00052054,120]
[355846923,1741634761331,-545.41,0.00052054,120]
[355846925,1741634761396,-500.0,0.00052054,120]
[355846927,1741634761463,-500.0,0.00052054,120]
[355846929,1741634761528,-500.0,0.00052054,120]
[355846930,1741634761595,-500.0,0.00052054,120]
[355846933,1741634761661,-567.29,0.00052054,120]
[355846935,1741634761730,-1069.2,0.00052054,120]
[355846937,1741634761795,-500.0,0.00052054,120]
[355846938,1741634761859,-569.12,0.00052054,120]
[355846941,1741634761926,-500.0,0.00052054,120]
[355846943,1741634761995,-500.0,0.00052054,120]
[355846945,1741634762065,-500.0,0.00052054,120]
[355846947,1741634762130,-500.0,0.00052054,120]
[355846949,1741634762196,-525.57,0.00052054,120]
[355846951,1741634762258,-500.0,0.00052054,120]
[355846953,1741634762322,-500.0,0.00052054,120]
[355846955,1741634762384,-500.0,0.00052054,120]
[355846956,1741634762447,-500.0,0.00052054,120]
[355846958,1741634762510,-500.0,0.00052054,120]
[355846961,1741634762575,-500.0,0.00052054,120]
[355846963,1741634762640,-567.26,0.00052054,120]
[355846964,1741634762704,-1000.0,0.00052054,120]
[355846967,1741634762772,-500.0,0.00052054,120]
[355846969,1741634762836,-500.0,0.00052054,120]
[355846971,1741634762898,-500.0,0.00052054,120]
[355846973,1741634762963,-538.11896422,0.00052054,120]
[355846975,1741634763029,-2049.14,0.00052054,120]
[355846977,1741634763098,-500.0,0.00052054,120]
[355846978,1741634763164,-500.0,0.00052054,120]
[355846981,1741634763234,-555.29699865,0.00052054,120]
[355846983,1741634763300,-500.0,0.00052054,120]
[355846985,1741634763367,-500.0,0.00052054,120]
[355846987,1741634763431,-500.0,0.00052054,120]
[355846989,1741634763497,-634.97,0.00052054,120]
[355846991,1741634763561,-500.0,0.00052054,120]
[355846993,1741634763627,-1733.86,0.00052054,120]
[355846995,1741634763693,-884.18,0.00052054,120]
[355846997,1741634763758,-500.0,0.00052054,120]
[355846999,1741634763823,-1852.39,0.00052054,120]
[355847001,1741634763890,-536.38,0.00052054,120]
[355847003,1741634763956,-500.0,0.00052054,120]
[355847005,1741634764025,-2167.04,0.00052054,120]
[355847007,1741634764092,-500.0,0.00052054,120]
[355847012,1741634764353,-500.0,0.00052054,120]
[355847013,1741634764424,-1453.83,0.00052054,120]